[Event "Nové Hrady - Rapid A"]
[Site "Nové Hrady, Czech Republic"]
[Date "2023.08.12"]
[Round "4.8"]
[White "Hokr, Matyáš"]
[Black "Drda, Štěpán"]
[Result "0-1"]
[TimeControl "2x20min+5s"]
[WhiteFideId "23734663"]
[BlackFideId "23731567"]
[WhiteElo "1228"]
[BlackElo "1582"]

1. e4 {[%clk 00:20:09]} c6 {[%clk 00:20:09]} {[%emt 00:00:02]} 2. d4 {[%clk
00:20:12]} d5 {[%clk 00:20:13]} 3. e5 {[%clk 00:20:14]} {[%emt 00:00:05]} c5
{[%clk 00:20:16]} 4. c3 {[%clk 00:20:16]} {[%emt 00:00:04]} Nc6 {[%clk
00:20:19]} {[%emt 00:00:02]} 5. Nf3 {[%clk 00:20:20]} Bg4 {[%clk 00:20:21]}
{[%emt 00:00:03]} 6. Bf4 {[%clk 00:20:19]} {[%emt 00:00:06]} e6 {[%clk
00:20:23]} {[%emt 00:00:03]} 7. Nbd2 {[%clk 00:20:21]} {[%emt 00:00:02]} Qb6
{[%clk 00:20:24]} {[%emt 00:00:05]} 8. Nb3 {[%clk 00:20:13]} {[%emt 00:00:14]}
cxd4 {[%clk 00:20:25]} {[%emt 00:00:04]} 9. cxd4 {[%clk 00:20:14]} {[%emt
00:00:04]} Nge7 {[%clk 00:20:23]} {[%emt 00:00:06]} 10. Be2 {[%clk 00:20:02]}
{[%emt 00:00:18]} Nf5 {[%clk 00:20:15]} {[%emt 00:00:13]} 11. Be3 {[%clk
00:19:59]} {[%emt 00:00:08]} Bb4+ {[%clk 00:20:12]} {[%emt 00:00:07]} 12. Kf1
{[%clk 00:19:37]} {[%emt 00:00:27]} O-O {[%clk 00:19:56]} {[%emt 00:00:21]} 13.
h3 {[%clk 00:19:40]} {[%emt 00:00:03]} Bxf3 {[%clk 00:19:59]} 14. gxf3 {[%clk
00:19:37]} {[%emt 00:00:09]} Rac8 {[%clk 00:19:25]} {[%emt 00:00:40]} 15. Rg1
{[%clk 00:19:18]} {[%emt 00:00:24]} Be7 {[%clk 00:18:06]} {[%emt 00:01:23]} 16.
Qd2 {[%clk 00:18:21]} {[%emt 00:01:01]} Bh4 {[%clk 00:15:06]} {[%emt 00:03:06]}
17. Rd1 {[%clk 00:17:06]} {[%emt 00:01:21]} Nb4 {[%clk 00:14:05]} {[%emt
00:01:06]} 18. Nc5 {[%clk 00:16:35]} {[%emt 00:00:36]} Rfd8 {[%clk 00:13:03]}
{[%emt 00:01:06]} 19. Bg5 {[%clk 00:16:20]} {[%emt 00:00:18]} Bxg5 {[%clk
00:11:51]} {[%emt 00:01:18]} 20. Qxg5 {[%clk 00:16:17]} {[%emt 00:00:08]} g6
{[%clk 00:11:34]} {[%emt 00:00:22]} 21. h4 {[%clk 00:15:27]} {[%emt 00:00:56]}
Nxd4 {[%clk 00:10:55]} {[%emt 00:00:44]} 22. Rxd4 {[%clk 00:14:52]} {[%emt
00:00:40]} Qxc5 {[%clk 00:10:56]} {[%emt 00:00:04]} 23. Rd1 {[%clk 00:14:44]}
{[%emt 00:00:13]} Nc6 {[%clk 00:09:48]} {[%emt 00:01:13]} 24. h5 {[%clk
00:14:31]} {[%emt 00:00:18]} Qe7 {[%clk 00:09:47]} {[%emt 00:00:06]} 25. hxg6
{[%clk 00:14:09]} {[%emt 00:00:27]} hxg6 {[%clk 00:07:36]} {[%emt 00:02:16]} 26.
Qh6 {[%clk 00:14:00]} {[%emt 00:00:13]} Nxe5 {[%clk 00:07:06]} {[%emt
00:00:36]} 27. f4 {[%clk 00:13:18]} {[%emt 00:00:47]} Nd7 {[%clk 00:06:31]}
{[%emt 00:00:40]} 28. Bh5 {[%clk 00:12:48]} {[%emt 00:00:34]} Nf8 {[%clk
00:05:56]} {[%emt 00:00:40]} 29. Rg3 {[%clk 00:11:30]} {[%emt 00:01:24]} Qh4
{[%clk 00:04:52]} {[%emt 00:01:09]} 30. Kg2 {[%clk 00:11:06]} {[%emt 00:00:29]}
Rc4 {[%clk 00:03:41]} {[%emt 00:01:16]} 31. Rg4 {[%clk 00:10:41]} {[%emt
00:00:30]} Qf6 {[%clk 00:03:06]} {[%emt 00:00:39]} 32. Rh1 {[%clk 00:10:20]}
{[%emt 00:00:25]} Qg7 {[%clk 00:02:28]} {[%emt 00:00:44]} 33. Qg5 {[%clk
00:10:14]} {[%emt 00:00:13]} Rdc8 {[%clk 00:02:14]} {[%emt 00:00:18]} 34. Rg3
{[%clk 00:09:38]} {[%emt 00:00:40]} Rc2 {[%clk 00:01:36]} {[%emt 00:00:44]} 35.
Bf3 {[%clk 00:09:19]} {[%emt 00:00:22]} Qxb2 {[%clk 00:01:05]} {[%emt
00:00:39]} 36. Rgh3 {[%clk 00:08:36]} {[%emt 00:00:47]} Rxf2+ {[%clk 00:01:06]}
{[%emt 00:00:05]} 37. Kg3 {[%clk 00:08:39]} {[%emt 00:00:01]} Rfc2 {[%clk
00:00:50]} {[%emt 00:00:21]} 38. f5 {[%clk 00:06:09]} {[%emt 00:02:36]} Qe5+
{[%clk 00:00:50]} {[%emt 00:00:05]} 39. Kg4 {[%clk 00:06:05]} {[%emt 00:00:07]}
R8c4+ {[%clk 00:00:51]} {[%emt 00:00:05]} 0-1

[Event "Nové Hrady - Rapid A"]
[Site "Nové Hrady, Czech Republic"]
[Date "2023.08.12"]
[Round "5.1"]
[White "Hák, David"]
[Black "Půlpán, Jakub"]
[Result "0-1"]
[TimeControl "2x20min+5s"]
[WhiteFideId "377007"]
[BlackFideId "302759"]
[WhiteElo "2123"]
[BlackElo "2515"]

1. d4 {[%clk 00:20:09]} Nf6 {[%clk 00:20:08]} {[%emt 00:00:03]} 2. c4 {[%clk
00:20:12]} {[%emt 00:00:01]} e6 {[%clk 00:20:11]} {[%emt 00:00:02]} 3. Nf3
{[%clk 00:20:13]} {[%emt 00:00:04]} d5 {[%clk 00:19:50]} {[%emt 00:00:26]} 4.
Nc3 {[%clk 00:20:14]} {[%emt 00:00:05]} c5 {[%clk 00:19:15]} {[%emt 00:00:39]}
5. cxd5 {[%clk 00:20:08]} {[%emt 00:00:11]} exd5 {[%clk 00:19:18]} {[%emt
00:00:03]} 6. g3 {[%clk 00:20:11]} Nc6 {[%clk 00:19:21]} {[%emt 00:00:04]} 7.
Bg2 {[%clk 00:20:13]} {[%emt 00:00:02]} cxd4 {[%clk 00:19:24]} {[%emt
00:00:02]} 8. Nxd4 {[%clk 00:20:17]} Bc5 {[%clk 00:19:28]} 9. Nxc6 {[%clk
00:19:24]} {[%emt 00:00:59]} bxc6 {[%clk 00:19:31]} {[%emt 00:00:02]} 10. O-O
{[%clk 00:19:20]} {[%emt 00:00:09]} O-O {[%clk 00:19:26]} {[%emt 00:00:11]} 11.
Na4 {[%clk 00:19:15]} {[%emt 00:00:10]} Bb6 {[%clk 00:19:13]} {[%emt 00:00:18]}
12. Qc2 {[%clk 00:18:32]} {[%emt 00:00:47]} Bd7 {[%clk 00:18:33]} {[%emt
00:00:45]} 13. Nc5 {[%clk 00:16:51]} {[%emt 00:01:47]} Re8 {[%clk 00:17:11]}
{[%emt 00:01:26]} 14. Be3 {[%clk 00:14:31]} {[%emt 00:02:25]} Rxe3 {[%clk
00:16:44]} {[%emt 00:00:32]} 15. fxe3 {[%clk 00:14:33]} {[%emt 00:00:04]} Qe7
{[%clk 00:16:41]} {[%emt 00:00:08]} 16. Nxd7 {[%clk 00:13:27]} {[%emt
00:01:11]} Qxd7 {[%clk 00:16:12]} {[%emt 00:00:34]} 17. Kh1 {[%clk 00:12:13]}
{[%emt 00:01:19]} Bxe3 {[%clk 00:15:43]} {[%emt 00:00:33]} 18. Rf3 {[%clk
00:11:29]} {[%emt 00:00:49]} Re8 {[%clk 00:15:37]} {[%emt 00:00:12]} 19. Raf1
{[%clk 00:08:45]} {[%emt 00:02:49]} Qd6 {[%clk 00:14:11]} {[%emt 00:01:30]} 20.
Qb3 {[%clk 00:07:03]} {[%emt 00:01:47]} Bd4 {[%clk 00:13:16]} {[%emt 00:01:00]}
21. e3 {[%clk 00:06:16]} {[%emt 00:00:52]} Bb6 {[%clk 00:13:15]} {[%emt
00:00:07]} 22. Rc1 {[%clk 00:05:08]} {[%emt 00:01:13]} Ng4 {[%clk 00:11:26]}
{[%emt 00:01:53]} 23. e4 {[%clk 00:03:18]} {[%emt 00:01:55]} Qh6 {[%clk
00:11:27]} {[%emt 00:00:04]} 24. h3 {[%clk 00:02:50]} {[%emt 00:00:34]} Qxc1+
{[%clk 00:11:30]} {[%emt 00:00:02]} 25. Rf1 {[%clk 00:02:54]} Qd2 {[%clk
00:11:04]} {[%emt 00:00:32]} 26. exd5 {[%clk 00:01:13]} {[%emt 00:01:45]} Ne3
{[%clk 00:11:03]} {[%emt 00:00:06]} 0-1

[Event "Nové Hrady - Rapid A"]
[Site "Nové Hrady, Czech Republic"]
[Date "2023.08.12"]
[Round "5.2"]
[White "Babula, Milan"]
[Black "Šlechta, Adam"]
[Result "1-0"]
[TimeControl "2x20min+5s"]
[WhiteFideId "300632"]
[BlackFideId "23734450"]
[WhiteElo "2212"]
[BlackElo "1409"]

1. e4 {[%clk 00:20:08]} {[%emt 00:00:02]} d6 {[%clk 00:20:06]} {[%emt
00:00:04]} 2. d4 {[%clk 00:20:10]} {[%emt 00:00:03]} Nf6 {[%clk 00:20:10]}
{[%emt 00:00:02]} 3. Nc3 {[%clk 00:20:12]} {[%emt 00:00:02]} g6 {[%clk
00:20:12]} {[%emt 00:00:03]} 4. f4 {[%clk 00:20:15]} {[%emt 00:00:02]} Bg7
{[%clk 00:20:09]} {[%emt 00:00:08]} 5. Nf3 {[%clk 00:19:06]} {[%emt 00:01:14]}
O-O {[%clk 00:19:44]} {[%emt 00:00:29]} 6. e5 {[%clk 00:19:09]} {[%emt
00:00:03]} dxe5 {[%clk 00:19:45]} {[%emt 00:00:04]} 7. dxe5 {[%clk 00:19:11]}
{[%emt 00:00:03]} Ng4 {[%emt 00:00:54]} 8. Qxd8 {[%clk 00:18:56]} {[%emt
00:00:19]} Rxd8 {[%clk 00:19:00]} {[%emt 00:00:02]} 9. h3 {[%clk 00:18:47]}
{[%emt 00:00:13]} Nh6 {[%clk 00:19:02]} {[%emt 00:00:03]} 10. g4 {[%clk
00:18:49]} {[%emt 00:00:04]} Nc6 {[%clk 00:18:55]} {[%emt 00:00:13]} 11. Be3
{[%clk 00:18:27]} {[%emt 00:00:26]} f5 {[%clk 00:17:55]} {[%emt 00:01:05]} 12.
Bc4+ {[%clk 00:17:49]} {[%emt 00:00:43]} Nf7 {[%clk 00:16:50]} {[%emt
00:01:10]} 13. Ng5 {[%clk 00:17:43]} {[%emt 00:00:11]} e6 {[%clk 00:16:18]}
{[%emt 00:00:37]} 14. Bxe6 {[%clk 00:16:36]} {[%emt 00:01:13]} Bxe6 {[%clk
00:16:01]} {[%emt 00:00:21]} 15. Nxe6 {[%clk 00:16:38]} {[%emt 00:00:02]} Rd7
{[%clk 00:15:51]} {[%emt 00:00:16]} 16. Nc5 {[%clk 00:15:33]} {[%emt 00:01:09]}
Rdd8 {[%clk 00:14:31]} {[%emt 00:01:26]} 17. Nxb7 {[%clk 00:15:27]} {[%emt
00:00:10]} Rdb8 {[%clk 00:14:34]} {[%emt 00:00:03]} 18. Nc5 {[%clk 00:15:30]}
{[%emt 00:00:02]} Rxb2 {[%clk 00:14:30]} {[%emt 00:00:10]} 19. O-O-O {[%clk
00:15:31]} {[%emt 00:00:03]} Rab8 {[%clk 00:13:58]} {[%emt 00:00:37]} 20. Nb3
{[%clk 00:15:28]} {[%emt 00:00:08]} Ra8 {[%emt 00:00:15]} 1-0

[Event "Nové Hrady - Rapid A"]
[Site "Nové Hrady, Czech Republic"]
[Date "2023.08.12"]
[Round "5.3"]
[White "Garabik, Marek"]
[Black "Steinbauer, Sebastián"]
[Result "1-0"]
[TimeControl "2x20min+5s"]
[WhiteFideId "23717742"]
[BlackFideId "399272"]
[WhiteElo "1767"]
[BlackElo "1833"]

1. e4 {[%clk 00:20:05]} {[%emt 00:00:02]} c5 {[%clk 00:20:00]} {[%emt
00:00:10]} 2. Nc3 {[%clk 00:20:05]} {[%emt 00:00:04]} g6 {[%clk 00:20:00]} 3.
f4 {[%clk 00:20:05]} {[%emt 00:00:05]} Bg7 {[%clk 00:20:00]} 4. Nf3 {[%clk
00:20:05]} {[%emt 00:00:01]} Nc6 {[%clk 00:20:00]} {[%emt 00:00:06]} 5. Bb5
{[%clk 00:20:05]} a6 {[%clk 00:20:00]} {[%emt 00:00:05]} 6. Bxc6 {[%clk
00:20:05]} dxc6 {[%clk 00:20:00]} {[%emt 00:00:02]} 7. d3 {[%clk 00:20:05]}
{[%emt 00:00:03]} b5 {[%clk 00:20:00]} {[%emt 00:00:06]} 8. O-O {[%clk
00:19:44]} {[%emt 00:00:26]} b4 {[%clk 00:18:52]} {[%emt 00:01:13]} 9. Ne2
{[%clk 00:19:44]} {[%emt 00:00:03]} a5 {[%clk 00:18:38]} {[%emt 00:00:20]} 10.
c3 {[%clk 00:19:35]} {[%emt 00:00:14]} Ba6 {[%emt 00:00:05]} 11. c4 {[%emt
00:00:34]} e6 {[%clk 00:16:41]} {[%emt 00:01:28]} 12. Qc2 {[%clk 00:19:32]}
{[%emt 00:00:08]} Qd7 {[%clk 00:16:31]} {[%emt 00:00:15]} 13. Be3 {[%clk
00:19:32]} {[%emt 00:00:03]} Qe7 {[%clk 00:15:43]} {[%emt 00:00:53]} 14. d4
{[%clk 00:18:24]} {[%emt 00:01:13]} cxd4 {[%clk 00:15:10]} {[%emt 00:00:38]} 15.
Bxd4 {[%clk 00:18:24]} {[%emt 00:00:02]} Bxd4+ {[%clk 00:14:07]} {[%emt
00:01:08]} 16. Nexd4 {[%clk 00:17:37]} {[%emt 00:00:52]} Qc5 {[%clk 00:14:07]}
{[%emt 00:00:02]} 17. b3 {[%clk 00:17:37]} {[%emt 00:00:03]} Ne7 {[%clk
00:13:22]} {[%emt 00:00:50]} 18. Qf2 {[%clk 00:15:49]} {[%emt 00:01:52]} O-O
{[%clk 00:12:07]} {[%emt 00:01:20]} 19. Kh1 {[%clk 00:15:41]} {[%emt 00:00:12]}
Qd6 {[%clk 00:10:59]} {[%emt 00:01:13]} 20. Qh4 {[%clk 00:15:22]} {[%emt
00:00:25]} c5 {[%clk 00:09:59]} {[%emt 00:01:05]} 21. Ng5 {[%clk 00:13:17]}
{[%emt 00:02:10]} h5 {[%clk 00:09:58]} {[%emt 00:00:06]} 22. Ndf3 {[%clk
00:13:17]} {[%emt 00:00:02]} Bb7 {[%clk 00:07:06]} {[%emt 00:02:57]} 23. Rad1
{[%clk 00:12:53]} {[%emt 00:00:28]} Qc7 {[%clk 00:07:06]} {[%emt 00:00:02]} 24.
e5 {[%clk 00:10:01]} {[%emt 00:02:57]} Nf5 {[%clk 00:06:47]} {[%emt 00:00:24]}
25. Qe1 {[%clk 00:09:38]} {[%emt 00:00:28]} Rad8 {[%clk 00:06:32]} {[%emt
00:00:20]} 26. Rxd8 {[%emt 00:00:22]} Rxd8 {[%emt 00:00:04]} 27. Ne4 {[%clk
00:09:10]} {[%emt 00:00:08]} Bxe4 {[%clk 00:06:01]} {[%emt 00:00:36]} 28. Qxe4
{[%clk 00:09:10]} {[%emt 00:00:02]} Qd7 {[%clk 00:05:48]} {[%emt 00:00:19]} 29.
Qe1 {[%clk 00:08:11]} {[%emt 00:01:03]} Qd3 {[%clk 00:05:42]} {[%emt 00:00:10]}
30. Rf2 {[%clk 00:07:52]} {[%emt 00:00:24]} Qd1 {[%clk 00:04:39]} {[%emt
00:01:09]} 31. Rf1 {[%clk 00:07:52]} {[%emt 00:00:05]} Ne3 {[%clk 00:04:10]}
{[%emt 00:00:34]} 32. Qxd1 {[%clk 00:07:28]} {[%emt 00:00:30]} Rxd1 {[%clk
00:04:10]} {[%emt 00:00:01]} 33. Rxd1 {[%clk 00:07:28]} Nxd1 {[%clk 00:04:10]}
{[%emt 00:00:04]} 34. Nd2 {[%clk 00:07:28]} Nc3 {[%clk 00:04:10]} {[%emt
00:00:03]} 35. Kg1 {[%clk 00:07:23]} {[%emt 00:00:10]} Nxa2 {[%clk 00:04:10]}
{[%emt 00:00:02]} 36. Ne4 {[%clk 00:07:23]} Nc1 {[%clk 00:04:10]} 37. Nxc5
{[%clk 00:07:23]} {[%emt 00:00:03]} Kf8 {[%clk 00:04:10]} {[%emt 00:00:04]} 38.
Kf2 {[%clk 00:07:19]} {[%emt 00:00:09]} a4 {[%clk 00:03:57]} {[%emt 00:00:18]}
39. Nxa4 {[%clk 00:06:58]} {[%emt 00:00:25]} Nxb3 {[%clk 00:03:57]} {[%emt
00:00:03]} 40. Ke3 {[%clk 00:06:57]} {[%emt 00:00:06]} Na5 {[%clk 00:03:57]}
{[%emt 00:00:02]} 41. Kd4 {[%clk 00:06:46]} {[%emt 00:00:15]} Nb7 {[%clk
00:03:45]} {[%emt 00:00:18]} 42. Nb2 {[%clk 00:06:23]} {[%emt 00:00:28]} Ke7
{[%clk 00:03:14]} {[%emt 00:00:36]} 43. Nd3 b3 44. Kc3 {[%clk 00:06:23]} {[%emt
00:00:02]} Kd7 {[%clk 00:03:14]} {[%emt 00:00:02]} 45. Kxb3 {[%clk 00:06:23]}
{[%emt 00:00:02]} Kc6 {[%clk 00:03:14]} {[%emt 00:00:01]} 46. Kb4 {[%clk
00:06:22]} {[%emt 00:00:06]} Kb6 {[%clk 00:02:56]} {[%emt 00:00:22]} 47. Nf2
{[%clk 00:05:21]} {[%emt 00:01:07]} Nd8 {[%clk 00:02:56]} {[%emt 00:00:02]} 48.
Ne4 {[%clk 00:05:21]} {[%emt 00:00:02]} Kc6 {[%clk 00:02:34]} {[%emt 00:00:26]}
49. Nd6 {[%clk 00:03:31]} {[%emt 00:01:55]} f6 {[%clk 00:02:16]} {[%emt
00:00:23]} 50. g3 {[%clk 00:01:36]} {[%emt 00:02:00]} fxe5 {[%clk 00:01:41]}
{[%emt 00:00:40]} 51. fxe5 {[%clk 00:01:36]} {[%emt 00:00:02]} Kc7 {[%clk
00:01:41]} 52. Kc5 {[%clk 00:00:54]} {[%emt 00:00:48]} Nc6 {[%clk 00:01:17]}
{[%emt 00:00:29]} 53. Nf7 {[%clk 00:00:54]} {[%emt 00:00:02]} Kd7 {[%clk
00:01:17]} 54. h4 {[%clk 00:00:48]} {[%emt 00:00:11]} Ne7 {[%clk 00:01:12]}
{[%emt 00:00:10]} 55. Ng5 {[%clk 00:00:21]} {[%emt 00:00:33]} Nf5 {[%clk
00:01:08]} {[%emt 00:00:08]} 56. Ne4 {[%clk 00:00:21]} {[%emt 00:00:02]} Kc7
{[%clk 00:00:54]} {[%emt 00:00:19]} 57. Ng5 {[%clk 00:00:15]} {[%emt 00:00:11]}
Nxg3 {[%clk 00:00:49]} {[%emt 00:00:10]} 58. Nxe6+ {[%clk 00:00:15]} Kd7 {[%clk
00:00:49]} 59. Nf4 {[%clk 00:00:13]} {[%emt 00:00:39]} Ke7 {[%clk 00:00:35]}
{[%emt 00:00:18]} 60. Kd5 {[%clk 00:00:13]} {[%emt 00:00:03]} Nf5 {[%clk
00:00:35]} {[%emt 00:00:05]} 61. Nxg6+ {[%clk 00:00:13]} Kf7 {[%clk 00:00:35]}
62. Nf4 {[%clk 00:00:13]} {[%emt 00:00:05]} Nxh4 {[%clk 00:00:35]} {[%emt
00:00:03]} 63. Nxh5 {[%clk 00:00:13]} Ke7 {[%clk 00:00:35]} {[%emt 00:00:04]}
64. Ng3 {[%clk 00:00:13]} {[%emt 00:00:02]} Ng6 {[%clk 00:00:35]} 65. Nf5+
{[%clk 00:00:13]} Kd8 {[%clk 00:00:35]} 66. c5 {[%clk 00:00:13]} Nf4+ {[%clk
00:00:35]} {[%emt 00:00:08]} 67. Ke4 {[%clk 00:00:13]} Ne6 {[%clk 00:00:35]}
{[%emt 00:00:03]} 68. Kd5 {[%clk 00:00:13]} {[%emt 00:00:02]} Nf4+ {[%clk
00:00:35]} 69. Kd6 {[%clk 00:00:13]} {[%emt 00:00:03]} Nd3 {[%clk 00:00:17]}
{[%emt 00:00:24]} 70. Nd4 {[%clk 00:00:13]} {[%emt 00:00:02]} Kc8 {[%clk
00:00:14]} {[%emt 00:00:07]} 71. e6 {[%clk 00:00:13]} {[%emt 00:00:02]} Kd8
{[%clk 00:00:14]} {[%emt 00:00:02]} 72. c6 {[%clk 00:00:13]} {[%emt 00:00:04]}
Nb4 {[%clk 00:00:14]} {[%emt 00:00:04]} 73. c7+ {[%clk 00:00:13]} {[%emt
00:00:02]} Kc8 {[%clk 00:20:05]} {[%emt 00:00:03]} 74. e7 1-0

[Event "Nové Hrady - Rapid A"]
[Site "Nové Hrady, Czech Republic"]
[Date "2023.08.12"]
[Round "5.4"]
[White "Pochinkov, Andrey"]
[Black "Rausch, Rudolf"]
[Result "1-0"]
[TimeControl "2x20min+5s"]
[WhiteFideId "4146387"]
[BlackFideId "1639455"]
[WhiteElo "2052"]
[BlackElo "1861"]

1. Nf3 {[%clk 00:20:06]} {[%emt 00:00:04]} g6 {[%clk 00:20:06]} {[%emt
00:00:04]} 2. d4 {[%clk 00:20:09]} {[%emt 00:00:03]} d5 {[%clk 00:20:09]}
{[%emt 00:00:03]} 3. e3 {[%clk 00:20:11]} {[%emt 00:00:02]} Bg7 {[%clk
00:20:12]} 4. Bd3 {[%clk 00:20:14]} {[%emt 00:00:04]} Nf6 {[%clk 00:20:16]} 5.
Nbd2 {[%clk 00:20:13]} {[%emt 00:00:06]} O-O {[%clk 00:20:19]} {[%emt
00:00:03]} 6. O-O {[%clk 00:20:10]} {[%emt 00:00:07]} Nc6 {[%clk 00:20:07]}
{[%emt 00:00:18]} 7. c3 {[%clk 00:19:30]} {[%emt 00:00:45]} a6 {[%clk
00:20:07]} {[%emt 00:00:05]} 8. h3 {[%clk 00:18:55]} {[%emt 00:00:39]} Bd7
{[%clk 00:19:53]} {[%emt 00:00:19]} 9. e4 {[%clk 00:16:46]} {[%emt 00:02:14]}
dxe4 {[%clk 00:19:51]} {[%emt 00:00:07]} 10. Nxe4 {[%clk 00:16:48]} {[%emt
00:00:03]} Nxe4 {[%clk 00:19:45]} {[%emt 00:00:11]} 11. Bxe4 {[%clk 00:16:51]}
{[%emt 00:00:02]} e6 {[%clk 00:19:39]} {[%emt 00:00:12]} 12. Bf4 {[%clk
00:16:24]} {[%emt 00:00:31]} Qc8 {[%clk 00:19:29]} {[%emt 00:00:16]} 13. Qd2
{[%clk 00:16:22]} {[%emt 00:00:06]} Ne7 {[%clk 00:19:26]} {[%emt 00:00:09]} 14.
Bh6 {[%clk 00:16:08]} {[%emt 00:00:19]} Bc6 {[%clk 00:19:21]} {[%emt 00:00:10]}
15. Rae1 {[%clk 00:15:52]} {[%emt 00:00:20]} Bxe4 {[%clk 00:18:21]} {[%emt
00:01:05]} 16. Rxe4 {[%clk 00:15:54]} Nf5 {[%clk 00:18:15]} {[%emt 00:00:14]}
17. Bxg7 {[%clk 00:15:50]} {[%emt 00:00:10]} Kxg7 {[%clk 00:18:18]} 18. Ne5
{[%clk 00:15:20]} {[%emt 00:00:35]} c5 {[%clk 00:17:40]} {[%emt 00:00:44]} 19.
g4 {[%clk 00:14:33]} {[%emt 00:00:51]} Nd6 {[%clk 00:17:33]} {[%emt 00:00:12]}
20. Rf4 {[%clk 00:14:20]} {[%emt 00:00:18]} cxd4 {[%clk 00:16:48]} {[%emt
00:00:51]} 21. Qxd4 {[%clk 00:14:21]} {[%emt 00:00:03]} Nb5 {[%clk 00:16:50]}
{[%emt 00:00:03]} 22. Qe3 {[%clk 00:14:07]} {[%emt 00:00:19]} Qc7 {[%clk
00:16:23]} {[%emt 00:00:31]} 23. c4 {[%clk 00:13:44]} {[%emt 00:00:28]} Na7
{[%clk 00:16:17]} {[%emt 00:00:12]} 24. g5 {[%clk 00:13:16]} {[%emt 00:00:33]}
Nc6 {[%clk 00:15:44]} {[%emt 00:00:39]} 25. Ng4 {[%clk 00:12:47]} {[%emt
00:00:33]} Rad8 {[%clk 00:15:28]} {[%emt 00:00:22]} 26. Nf6 {[%clk 00:11:01]}
{[%emt 00:01:50]} Qe5 {[%clk 00:15:06]} {[%emt 00:00:26]} 27. Qg3 {[%clk
00:09:46]} {[%emt 00:01:20]} Rd4 {[%clk 00:14:37]} {[%emt 00:00:35]} 28. Qh4
{[%clk 00:09:15]} {[%emt 00:00:35]} h5 {[%clk 00:14:12]} {[%emt 00:00:31]} 29.
gxh6+ {[%clk 00:08:56]} {[%emt 00:00:24]} Kh8 {[%clk 00:14:05]} {[%emt
00:00:13]} 30. Rxd4 {[%clk 00:08:31]} {[%emt 00:00:30]} Nxd4 {[%clk 00:13:48]}
{[%emt 00:00:21]} 31. f4 {[%clk 00:08:27]} {[%emt 00:00:09]} Qe3+ {[%clk
00:13:35]} {[%emt 00:00:18]} 32. Qf2 {[%clk 00:08:19]} {[%emt 00:00:13]} Qxf2+
{[%clk 00:11:01]} {[%emt 00:02:39]} 33. Kxf2 {[%clk 00:08:22]} {[%emt
00:00:03]} Nf5 {[%clk 00:11:04]} 34. Rd1 {[%clk 00:08:20]} {[%emt 00:00:08]}
Nxh6 {[%clk 00:11:05]} {[%emt 00:00:04]} 35. Rd7 {[%clk 00:08:23]} {[%emt
00:00:02]} b5 {[%clk 00:11:08]} {[%emt 00:00:02]} 36. c5 {[%clk 00:08:20]}
{[%emt 00:00:08]} Kg7 {[%clk 00:11:09]} {[%emt 00:00:06]} 37. Ne4 {[%clk
00:08:19]} {[%emt 00:00:05]} Rc8 {[%clk 00:10:21]} {[%emt 00:00:11]} 38. b4
{[%clk 00:08:21]} {[%emt 00:00:44]} Rc6 {[%clk 00:09:50]} {[%emt 00:00:36]} 39.
Rb7 {[%clk 00:07:04]} {[%emt 00:01:22]} a5 {[%clk 00:08:49]} {[%emt 00:01:08]}
40. a3 {[%clk 00:07:06]} {[%emt 00:00:02]} axb4 {[%clk 00:08:52]} {[%emt
00:00:01]} 41. axb4 {[%clk 00:07:10]} Nf5 {[%clk 00:08:53]} {[%emt 00:00:06]}
42. Rxb5 {[%clk 00:07:09]} {[%emt 00:00:06]} Rc7 {[%clk 00:08:40]} {[%emt
00:00:17]} 43. Ra5 {[%clk 00:06:57]} {[%emt 00:00:16]} Ne7 {[%clk 00:08:28]}
{[%emt 00:00:17]} 44. b5 {[%clk 00:06:29]} {[%emt 00:00:35]} Nd5 {[%clk
00:07:21]} {[%emt 00:01:12]} 45. b6 {[%clk 00:06:24]} {[%emt 00:00:09]} Nxb6
{[%clk 00:07:00]} {[%emt 00:00:27]} 46. cxb6 {[%clk 00:06:26]} {[%emt
00:00:02]} Rc2+ {[%clk 00:06:21]} {[%emt 00:00:44]} 47. Ke3 {[%clk 00:06:25]}
{[%emt 00:00:05]} Rb2 {[%clk 00:06:24]} {[%emt 00:00:03]} 48. Ra6 {[%clk
00:06:23]} {[%emt 00:00:07]} Kh6 {[%clk 00:06:13]} {[%emt 00:00:16]} 49. Nd6
{[%clk 00:06:19]} {[%emt 00:00:09]} f6 {[%clk 00:05:59]} {[%emt 00:00:17]} 50.
b7 {[%clk 00:06:15]} {[%emt 00:00:11]} e5 {[%clk 00:05:49]} {[%emt 00:00:16]}
51. fxe5 {[%clk 00:06:12]} {[%emt 00:00:08]} fxe5 {[%clk 00:05:52]} {[%emt
00:00:02]} 52. Ra8 {[%clk 00:06:13]} {[%emt 00:00:02]} 1-0